fUST/lending_fUST_20251011
["ID","MTS","AMOUNT","RATE_DAILY","PERIOD"]
[390735795,1760134234265,-196.0,0.00029068,2]
[390735796,1760134234274,-151.0,0.00029074,2]
[390735797,1760134234283,-151.0,0.00029074,2]
[390735798,1760134234293,-151.0,0.00029074,2]
[390735799,1760134234302,-151.0,0.00029074,2]
[390735800,1760134234311,-197.99,0.00029074,2]
[390735801,1760134234320,-151.0,0.00029074,2]
[390735802,1760134234329,-151.0,0.00029074,2]
[390735803,1760134234338,-152.12694981,0.00029074,2]
[390735804,1760134234347,-151.73338094,0.00029074,2]
[390735805,1760134234356,-151.0,0.00029074,2]
[390735806,1760134234366,-156.98619799,0.00029074,2]
[390735807,1760134234375,-151.0,0.00029129,2]
[390735808,1760134234385,-1050.27,0.00029174,2]
[390735809,1760134234397,-151.0,0.00029184,2]
[390735810,1760134234407,-194.0,0.00029185,2]
[390735811,1760134234416,-5000.0,0.000292,7]
[390735812,1760134234425,-194.0,0.0002923,7]
[390735813,1760134234435,-296.0,0.00029238,2]
[390735814,1760134234444,-168.0,0.00029284,7]
[390735815,1760134234453,-1000.0,0.00029326,2]
[390735816,1760134234463,-1000.0,0.00029326,2]
[390735817,1760134234472,-1000.0,0.00029326,2]
[390735818,1760134234484,-1000.0,0.00029326,2]
[390735819,1760134234493,-1000.0,0.00029326,2]
[390735820,1760134234503,-1000.0,0.00029326,2]
[390735821,1760134234516,-1000.0,0.00029326,2]
[390735822,1760134234525,-250.8564,0.00029326,2]
[390735823,1760134234535,-2953.08312981,0.00029334,2]
[390735824,1760134234551,-42280.43554632,0.00029334,2]
[390735825,1760134234562,-1050.27,0.00029348,2]
[390735826,1760134234571,-799.0,0.00029357,2]
[390735827,1760134234580,-158.55802683,0.00029364,7]
[390735828,1760134234590,-329.0,0.00029364,7]
[390735829,1760134234599,-329.0,0.00029364,7]
[390735830,1760134234609,-329.0,0.00029364,7]
[390735831,1760134234618,-329.0,0.00029364,7]
[390735832,1760134234626,-329.0,0.00029364,7]
[390735833,1760134234636,-402.89972253,0.00029364,7]
[390735834,1760134234645,-13514.58922966,0.00029368,2]
[390735835,1760134234654,-574.24545523,0.00029396,2]
[390735836,1760134234663,-3649.59364475,0.00029396,2]
[390735837,1760134234672,-1664.74797345,0.00029434,2]
[390735838,1760134234685,-151100.90725455,0.00029434,2]
[390735839,1760134234694,-1626.20196587,0.00029434,2]
[390735840,1760134234703,-387.27,0.00029437,3]
[390735841,1760134234713,-193.63,0.00029437,3]
[390735842,1760134234722,-580.93,0.00029437,3]
[390735843,1760134234733,-500.0,0.00029444,2]
[390735844,1760134234742,-500.0,0.00029444,2]
[390735845,1760134234751,-522.25467109,0.00029444,2]
[390735846,1760134234761,-500.0,0.00029444,2]
[390735847,1760134234771,-500.0,0.00029444,2]
[390735848,1760134234780,-500.0,0.00029444,2]
[390735849,1760134234790,-500.0,0.00029444,2]
[390735850,1760134234799,-500.0,0.00029444,2]
[390735851,1760134234809,-463.63473974,0.00029444,2]
[390735852,1760134234818,-500.0,0.00029444,2]
[390735853,1760134234827,-500.0,0.00029444,2]
[390735854,1760134234837,-219.14313526,0.00029444,2]
[390735855,1760134234846,-500.0,0.00029444,2]
[390735856,1760134234856,-194.0,0.00029447,7]
[390735857,1760134234865,-500.0,0.00029455,11]
[390735858,1760134234874,-500.0,0.00029458,60]
[390735859,1760134234884,-500.0,0.00029458,60]
[390735860,1760134234893,-500.0,0.00029458,60]
[390735861,1760134234902,-5070.31,0.00029458,2]
[390735862,1760134234912,-879.08,0.00029458,60]
[390735863,1760134234922,-879.08,0.00029458,60]
[390735864,1760134234932,-879.08,0.00029458,60]
[390735865,1760134234941,-879.08,0.00029458,60]
[390735866,1760134234951,-879.08,0.00029458,60]
[390735867,1760134234961,-879.08,0.00029458,60]
[390735868,1760134234971,-879.08,0.00029458,60]
[390735869,1760134234982,-879.08,0.00029458,60]
[390735870,1760134234991,-879.08,0.00029458,60]
[390735871,1760134235000,-879.08,0.00029458,60]
[390735872,1760134235010,-879.08,0.00029458,60]
[390735873,1760134235019,-879.08,0.00029458,60]
[390735874,1760134235028,-879.08,0.00029458,60]
[390735875,1760134235039,-879.08,0.00029458,60]
[390735876,1760134235048,-879.08,0.00029458,60]
[390735877,1760134235057,-879.08,0.00029458,60]
[390735878,1760134235067,-879.08,0.00029458,60]
[390735879,1760134235077,-879.08,0.00029458,60]
[390735880,1760134235086,-879.08,0.00029458,60]
[390735881,1760134235096,-879.08,0.00029458,60]
[390735882,1760134235105,-879.08,0.00029458,60]
[390735883,1760134235115,-879.16960936,0.00029458,60]
[390735884,1760134235124,-1270.0,0.00029461,120]
[390735885,1760134235134,-2000.0,0.00029461,120]
[390735886,1760134235143,-2000.0,0.00029461,120]
[390735887,1760134235152,-152765.655228,0.00029468,2]
[390735888,1760134235162,-1626.20196587,0.00029468,2]
[390735889,1760134235171,-154.002536,0.00029471,30]
[390735890,1760134235180,-165.649326,0.00029471,30]
[390735891,1760134235190,-500.0,0.00029473,5]
[390735892,1760134235199,-500.0,0.00029473,5]
[390735893,1760134235208,-501.28009836,0.00029473,5]
[390735894,1760134235218,-500.0,0.00029473,5]
[390735895,1760134235228,-500.0,0.00029473,5]
[390735896,1760134235237,-500.0,0.00029473,2]
[390735897,1760134235247,-500.0,0.00029473,5]
[390735898,1760134235256,-500.0,0.00029473,5]
[390735899,1760134235265,-500.0,0.00029473,5]
[390735900,1760134235275,-639.78746171,0.00029473,5]
[390735901,1760134235284,-500.0,0.00029473,5]
[390735902,1760134235293,-500.0,0.00029473,5]
[390735903,1760134235302,-500.0,0.00029473,5]
[390735904,1760134235311,-500.0,0.00029473,5]
[390735905,1760134235320,-500.0,0.00029473,5]
[390735906,1760134235330,-500.0,0.00029473,5]
[390735907,1760134235340,-500.0,0.00029473,5]
[390735908,1760134235349,-500.0,0.00029473,5]
[390735909,1760134235359,-298.03512572,0.00029478,30]
[390735910,1760134235369,-298.03512572,0.00029478,3]
[390735911,1760134235378,-34323.75580875,0.00029478,30]
[390735912,1760134235387,-526.02426037,0.0002948,30]
[390735913,1760134235397,-515.6424063,0.0002948,120]
[390735914,1760134235406,-526.02426037,0.0002948,10]
[390735915,1760134235416,-526.02426037,0.0002948,7]
[390735916,1760134235426,-198.56119718,0.0002948,3]
[390735917,1760134235436,-200.0,0.00029484,120]
[390735918,1760134235445,-151.0,0.00029485,30]
[390735919,1760134235455,-151.0,0.00029485,30]
[390735920,1760134235464,-151.0,0.00029485,30]
[390735921,1760134235473,-151.0,0.00029485,30]
[390735922,1760134235484,-151.0,0.00029485,30]
[390735923,1760134235494,-186.117989,0.00029485,30]
[390735924,1760134235503,-151.0,0.00029485,30]
[390735925,1760134235519,-151.0,0.00029485,30]
[390735926,1760134235529,-151.0,0.00029485,30]
[390735927,1760134235538,-151.0,0.00029485,30]
[390735928,1760134235547,-151.0,0.00029485,30]
[390735929,1760134235557,-151.0,0.00029485,30]
[390735930,1760134235567,-151.0,0.00029485,30]
[390735931,1760134235576,-195.70387,0.00029485,30]
[390735932,1760134235586,-151.0,0.00029485,30]
[390735933,1760134235596,-151.0,0.00029485,30]
[390735934,1760134235605,-151.0,0.00029485,30]
[390735935,1760134235614,-151.0,0.00029485,30]
[390735936,1760134235623,-151.0,0.00029485,30]
[390735937,1760134235633,-287.524392,0.00029485,30]
[390735938,1760134235643,-384044.88468541,0.00029494,20]
[390735939,1760134235962,200.0,0.00027,120]
[390735940,1760134236008,200.0,0.000277,120]
[390735941,1760134236056,200.0,0.000284,120]
[390736026,1760134238828,-236.63696,0.000291,120]
[390736030,1760134238838,-19379.19503911,0.00029494,20]
[390736033,1760134238858,-1895936.31387033,0.00029494,20]
[390736037,1760134238873,-2246662.82558029,0.00029494,20]
[390736039,1760134238886,-389.48,0.00029494,20]
[390736055,1760134238966,-132768.0308069,0.00029494,20]
[390736058,1760134238984,-18799.99999496,0.00029494,20]
[390736060,1760134238997,-83788.12131509,0.00029494,20]
[390736062,1760134239009,-44600.001,0.00029494,20]
[390736257,1760134240969,-345.60334028,0.0002847,2]
[390736291,1760134242141,-154.39665972,0.0002847,2]
[390736292,1760134242151,-151.0,0.000294,19]
[390736293,1760134242161,-151.0,0.000294,17]
[390736294,1760134242171,-2428.79860692,0.00029484,10]
[390736295,1760134242183,-374.58,0.00029484,10]
[390736296,1760134242194,-268.71999999,0.00029484,10]
[390736297,1760134242206,-459.42139309,0.00029484,10]
[390736298,1760134242216,-25179.65960185,0.00029494,20]
[390736299,1760134242383,-196.47362747,0.00029433,2]
[390736300,1760134242392,-1807.19034913,0.00029494,20]
[390736301,1760134242403,-10536.954,0.00029494,20]
[390736447,1760134243902,-4859.05,0.00029447,2]
[390736448,1760134243911,-19958.83110485,0.00029494,20]
[390736449,1760134243923,-4505480.97117762,0.00029494,20]
[390736450,1760134243934,-3499.93,0.00029494,20]
[390736451,1760134244023,-3440.0,0.00029494,20]
[390736452,1760134244035,-19380.00001,0.00029494,20]
[390736453,1760134244046,-66399.9995,0.00029494,20]
[390736714,1760134247058,-168.82349567,0.00029283,2]
[390736717,1760134247068,-168.82349567,0.00029354,2]
[390736722,1760134247087,-168.82349567,0.00029425,2]
[390736725,1760134247098,-166735.1060904,0.00029494,20]
[390736826,1760134247507,-115909.63022691,0.00029494,20]
[390736829,1760134247523,-53296.32232771,0.00029494,20]
[390736831,1760134247534,-442.508216,0.00029494,20]
[390736833,1760134247546,-495.84,0.00029494,20]
[390736836,1760134247571,-320.66464177,0.00029211,2]
[390736838,1760134247580,-385679.33379823,0.00029494,20]
[390736840,1760134247593,-596.13239745,0.00029494,20]
[390739549,1760134312089,10620.41379893,0.00024,30]
[390739551,1760134429505,1100.0,0.00029496,120]
[390739552,1760134445876,3818.15,0.00028767,120]
[390739553,1760134473840,2718.15,0.00028767,120]
[390739558,1760134482531,1451.725,0.00028767,120]
[390739584,1760134591395,2500.0,0.00024,30]
[390739585,1760134603350,2500.0,0.00015571,2]
[390739599,1760134948588,179.0,0.00027068,120]
[390739600,1760134949880,179.0,0.00028422,120]
[390739601,1760135061249,1674.13059503,0.00017,10]
[390739648,1760135314174,308.26429996,0.00028,120]
[390739655,1760135372399,-209.65613068,0.000169,2]
[390739656,1760135372418,-151.0,0.00017,2]
[390739657,1760135372439,-3971.66133953,0.00017,2]
[390739658,1760135372460,-209.65613067,0.00017037,2]
[390739659,1760135372480,-151.0,0.00017137,2]
[390739660,1760135372502,-151.0,0.00017275,2]
[390739661,1760135372523,-500.0,0.000174,2]
[390739662,1760135372543,-151.0,0.00017412,2]
[390739663,1760135372563,-160.0,0.00017422,2]
[390739664,1760135372582,-150.0,0.00017427,2]
[390739665,1760135372601,-151.0,0.0001755,2]
[390739666,1760135372621,-300.0,0.00017599,2]
[390739667,1760135372639,-2110.67602749,0.000176,2]
[390739668,1760135372660,-151.0,0.00017687,2]
[390739669,1760135372680,-44793.04174617,0.00017725,2]
[390739670,1760135372700,-628.24264325,0.00017808,2]
[390739671,1760135372718,-151.0,0.00017825,2]
[390739672,1760135372738,-151.0,0.00017962,2]
[390739673,1760135372759,-23419.22211973,0.00018,2]
[390739674,1760135372779,-172.5,0.00018027,2]
[390739675,1760135372798,-151.0,0.000181,2]
[390739676,1760135373014,-195.0,0.00018627,2]
[390739677,1760135373036,-150.0,0.00018983,2]
[390739678,1760135373056,-208.0,0.00019151,3]
[390739679,1760135373079,-420.0,0.0001921,2]
[390739680,1760135373099,-217.5,0.00019227,2]
[390739681,1760135373119,-1339.37188584,0.00019607,2]
[390739682,1760135373139,-240.0,0.00019827,2]
[390739683,1760135373161,-151.62243378,0.0002,7]
[390739684,1760135373181,-287.0,0.00020198,2]
[390739685,1760135373203,-1200.0,0.00020198,2]
[390739686,1760135373225,-199.0,0.000202,2]
[390739687,1760135373246,-160.0,0.0002024,2]
[390739688,1760135373266,-160.0,0.0002024,2]
[390739689,1760135373287,-298.03512572,0.0002024,2]
[390739690,1760135373307,-262.5,0.00020427,2]
[390739691,1760135373329,-150.0,0.00020708,2]
[390739692,1760135373351,-180.0,0.00020969,2]
[390739693,1760135373371,-1608.865295,0.00021,5]
[390739694,1760135373391,-3242.88541699,0.00021,4]
[390739695,1760135373412,-285.0,0.00021027,2]
[390739696,1760135373433,-2043.7,0.0002149,10]
[390739697,1760135373457,-12692.24329822,0.000215,2]
[390739698,1760135373479,-307.5,0.00021627,2]
[390739699,1760135373502,-164.0,0.00022,2]
[390739700,1760135373522,-1316.0,0.00022094,2]
[390739701,1760135373542,-219.03,0.00022434,2]
[390739702,1760135373562,-500.0,0.00022973,2]
[390739703,1760135373584,-500.0,0.00022973,2]
[390739704,1760135373604,-57908.13634573,0.00023,7]
[390739724,1760135432102,-177.67,0.0002299,2]
[390739725,1760135432112,-2602.32,0.0002299,10]
[390739726,1760135432125,-300.0,0.00022999,2]
[390739727,1760135432135,-200.0,0.00022999,2]
[390739728,1760135432145,-150841.06298155,0.00023,7]
[390739729,1760135432155,-185.42387531,0.00023321,2]
[390739730,1760135432165,-500.0,0.00023521,2]
[390739731,1760135432175,-1033.42206223,0.00023521,2]
[390739732,1760135432186,-526.02426037,0.00024099,2]
[390739733,1760135432195,-292.04,0.0002416,2]
[390739734,1760135432205,-288.061,0.00024189,6]
[390739735,1760135432215,-160.0,0.00024462,2]
[390739736,1760135432225,-160.0,0.00024466,2]
[390739738,1760135432235,-185.42387528,0.00025349,2]
[390739739,1760135432246,-365.05,0.00025885,2]
[390739741,1760135432256,-878.17239486,0.00026,60]
[390739743,1760135432267,-500.0,0.0002648,2]
[390739745,1760135432277,-185.42387528,0.00027376,2]
[390739747,1760135432287,-500.0,0.00027397,2]
[390739749,1760135432297,-152.816439,0.00027397,2]
[390739751,1760135432307,-500.0,0.00027397,2]
[390739753,1760135432316,-500.0,0.00027397,2]
[390739755,1760135432326,-438.06,0.00027611,2]
[390739757,1760135432335,-14818.20193602,0.00027696,2]
[390739776,1760135432559,-4677.74769408,0.00027696,2]
[390739870,1760135438166,-500.0,0.00022999,2]
[390739871,1760135438175,-500.0,0.00022999,2]
[390739872,1760135438185,-500.0,0.00022999,2]
[390739873,1760135438194,-500.0,0.00022999,2]
[390739874,1760135438203,-500.0,0.00022999,2]
[390739875,1760135438212,-500.0,0.00022999,2]
[390739876,1760135438221,-500.0,0.00022999,2]
[390739877,1760135438231,-500.0,0.00022999,2]
[390739878,1760135438240,-500.0,0.00022999,2]
[390739879,1760135438250,-517.98496135,0.00022999,2]
[390739880,1760135438259,-500.0,0.00022999,2]
[390739881,1760135438268,-500.0,0.00022999,2]
[390739882,1760135438276,-248.81478605,0.00022999,2]
[390739883,1760135438285,-500.0,0.00022999,2]
[390739884,1760135438295,-500.0,0.00022999,2]
[390739885,1760135438305,-500.0,0.00022999,2]
[390739886,1760135438315,-500.0,0.00022999,2]
[390739887,1760135438324,-500.0,0.00022999,2]
[390739888,1760135438333,-500.0,0.00022999,2]
[390739889,1760135438342,-500.0,0.00022999,2]
[390739890,1760135438352,-500.0,0.00022999,2]
[390739892,1760135438362,-500.0,0.00022999,2]
[390739894,1760135438371,-500.0,0.00022999,2]
[390739896,1760135438379,-547.72912597,0.00022999,2]
[390739898,1760135438389,-2282.12897189,0.00027696,2]
[390739900,1760135438398,-328.42863553,0.00027795,2]
[390739902,1760135438407,-110368.30815892,0.00027796,2]
[390739903,1760135438419,-872.43590969,0.00027796,2]
[390739904,1760135438452,-3000.0,0.00027796,2]
[390739905,1760135438463,-268.00484811,0.00027796,2]
[390739906,1760135438475,-23344.55082228,0.00027796,2]
[390739907,1760135438484,-158.99194146,0.00027796,2]
[390739908,1760135438494,-423.1,0.00027796,10]
[390739909,1760135438503,-500.0,0.00027806,2]
[390739910,1760135438512,-652.8211548,0.0002786,20]
[390739911,1760135438522,-250.0,0.00027991,2]
[390739912,1760135438531,-250.0,0.00027991,2]
[390739913,1760135438700,-250.0,0.00027991,2]
[390739914,1760135438710,-250.0,0.00027991,2]
[390739915,1760135438719,-250.0,0.00027991,2]
[390739916,1760135438728,-250.0,0.00027991,2]
[390739917,1760135438737,-250.0,0.00027991,2]
[390739918,1760135438746,-250.0,0.00027991,2]
[390739919,1760135438755,-16671.19035133,0.00027991,2]
[390739920,1760135438766,-500.0,0.00027991,2]
[390739921,1760135438775,-500.0,0.00027991,2]
[390739922,1760135438784,-500.0,0.00027991,2]
[390739923,1760135438794,-1000.0,0.0002842,30]
[390739924,1760135438805,-500.0,0.0002849,20]
[390739925,1760135438814,-8733.91542786,0.000285,7]
[390739926,1760135438823,-500.0,0.00028672,7]
[390739927,1760135438832,-500.0,0.0002869,5]
[390739928,1760135438841,-970.5366833,0.00028767,30]
[390739929,1760135438851,-411.0,0.00028889,2]
[390739930,1760135438860,-1050.27,0.00029,2]
[390739931,1760135438870,-1050.27,0.00029174,2]
[390739932,1760135438880,-284.0,0.00029238,120]
[390739933,1760135438890,-150.5,0.00029248,120]
[390739934,1760135438898,-150.5,0.00029258,120]
[390739935,1760135438908,-16387.71345191,0.00029268,2]
[390739936,1760135438922,-331.08432224,0.00029295,2]
[390739937,1760135438931,-174.30753802,0.00029318,2]
[390739938,1760135438940,-438.15145702,0.00029334,2]
[390739939,1760135438950,-511.07,0.00029337,2]
[390739940,1760135438960,-174.30753802,0.00029341,2]
[390739941,1760135438970,-438.15145699,0.00029351,2]
[390739942,1760135438979,-174.30753802,0.00029364,2]
[390739943,1760135438990,-438.15145699,0.00029367,2]
[390739944,1760135439000,-438.15145699,0.00029384,2]
[390739945,1760135439010,-174.30753802,0.00029387,2]
[390739946,1760135439019,-137853.299739,0.00029388,2]
[390739947,1760135439029,-158.99194146,0.00029388,2]
[390739948,1760135439038,-21750.92619373,0.00029398,3]
[390739949,1760135439048,-438.15145699,0.000294,2]
[390739950,1760135439059,-204.1,0.000294,4]
[390739951,1760135439069,-188.88,0.000294,4]
[390739952,1760135439078,-220.36193219,0.000294,4]
[390739953,1760135439088,-220.36,0.000294,4]
[390739954,1760135439098,-185.42387528,0.00029404,2]
[390739955,1760135439107,-174.30753802,0.0002941,2]
[390739956,1760135439116,-275706.599478,0.00029424,2]
[390739957,1760135439125,-476.97582438,0.00029424,2]
[390739958,1760135439134,-5790.78,0.00029433,2]
[390739959,1760135439144,-174.30753802,0.00029433,2]
[390739960,1760135439152,-158.99194146,0.00029434,2]
[390739961,1760135439161,-878685.3164,0.00029444,2]
[390739962,1760135439171,-555.79995039,0.0002945,2]
[390739963,1760135439180,-174.30753802,0.00029456,2]
[390739964,1760135439189,-476.97582438,0.00029466,2]
[390739965,1760135439199,-174.754,0.00029469,2]
[390739966,1760135439208,-291.80082747,0.0002947,20]
[390739967,1760135439218,-500.0,0.00029473,5]
[390739968,1760135439228,-500.0,0.00029473,5]
[390739969,1760135439237,-500.0,0.00029473,5]
[390739970,1760135439247,-500.0,0.00029473,5]
[390739971,1760135439257,-500.0,0.00029473,5]
[390739972,1760135439266,-360.21253829,0.00029473,5]
[390739973,1760135439276,-500.0,0.00029473,5]
[390739974,1760135439285,-500.0,0.00029476,11]
[390739975,1760135439294,-953.95164876,0.00029478,2]
[390739976,1760135439305,-174.30753802,0.00029479,2]
[390739977,1760135439314,-158.99194146,0.0002948,2]
[390739978,1760135439324,-617.94,0.00029488,3]
[390739979,1760135439333,-308.97,0.00029488,3]
[390739980,1760135439342,-154.49,0.00029488,3]
[390739981,1760135439351,-463.48,0.00029488,3]
[390739982,1760135439360,-581.34,0.00029488,3]
[390739983,1760135439369,-158.99194146,0.00029488,2]
[390739984,1760135439378,-476.97582438,0.0002949,2]
[390739985,1760135439387,-165.649326,0.00029494,20]
[390739986,1760135439396,-151.0,0.00029494,30]
[390739987,1760135439407,-293.170233,0.00029494,30]
[390739988,1760135439416,-200.0,0.00029497,120]
[390739989,1760135439425,-151.0,0.00029497,30]
[390739990,1760135439434,-151.0,0.00029497,30]
[390739991,1760135439443,-151.0,0.00029497,30]
[390739992,1760135439453,-151.0,0.00029497,30]
[390739993,1760135439462,-151.0,0.00029497,30]
[390739994,1760135439471,-151.0,0.00029497,30]
[390739995,1760135439479,-151.0,0.00029497,30]
[390739996,1760135439489,-151.0,0.00029497,30]
[390739997,1760135439499,-526.02426037,0.00029497,30]
[390739999,1760135439508,-152.65661,0.00029498,30]
[390740000,1760135439519,-151.0,0.00029498,30]
[390740001,1760135439528,-151.0,0.00029498,30]
[390740003,1760135439538,-151.0,0.00029498,30]
[390740004,1760135439548,-151.0,0.00029498,30]
[390740005,1760135439560,-151.0,0.00029498,30]
[390740007,1760135439569,-151.0,0.00029498,30]
[390740008,1760135439579,-151.0,0.00029498,30]
[390740009,1760135439589,-200.465068,0.00029498,30]
[390740011,1760135439599,-151.0,0.00029498,30]
[390740012,1760135439608,-151.0,0.00029498,30]
[390740014,1760135439618,-199.041029,0.00029498,30]
[390740015,1760135439627,-154.579826,0.00029498,30]
[390740016,1760135439637,-154.579826,0.00029498,30]
[390740018,1760135439647,-154.579826,0.00029498,30]
[390740019,1760135439656,-154.579826,0.00029498,30]
[390740021,1760135439665,-154.579826,0.00029498,30]
[390740022,1760135439675,-154.579826,0.00029498,30]
[390740023,1760135439684,-154.579826,0.00029498,30]
[390740024,1760135439694,-154.579826,0.00029498,30]
[390740025,1760135439703,-154.579826,0.00029498,30]
[390740026,1760135439714,-154.579826,0.00029498,30]
[390740027,1760135439724,-154.579826,0.00029498,30]
[390740028,1760135439733,-154.579826,0.00029498,30]
[390740029,1760135439744,-154.579826,0.00029498,30]
[390740030,1760135439753,-154.579826,0.00029498,30]
[390740031,1760135439763,-151.0,0.00029498,30]
[390740032,1760135439772,-154.579826,0.00029498,30]
[390740033,1760135439782,-151.0,0.00029498,30]
[390740034,1760135439791,-154.579826,0.00029498,30]
[390740035,1760135439800,-151.0,0.00029498,30]
[390740036,1760135439815,-154.579826,0.00029498,30]
[390740037,1760135439825,-151.0,0.00029498,30]
[390740038,1760135439835,-154.579826,0.00029498,30]
[390740039,1760135439844,-286.417008,0.00029498,30]
[390740040,1760135439855,-154.579826,0.00029498,30]
[390740041,1760135439865,-154.57983,0.00029498,30]
[390740042,1760135439874,-159.401561,0.00029498,30]
[390740043,1760135439884,-159.401561,0.00029498,30]
[390740044,1760135439893,-159.401561,0.00029498,30]
[390740045,1760135439903,-456.968738,0.00029498,30]
[390740046,1760135439913,-159.401561,0.00029498,30]
[390740047,1760135439922,-456.968738,0.00029498,30]
[390740048,1760135439935,-159.401561,0.00029498,30]
[390740049,1760135439945,-456.968738,0.00029498,30]
[390740050,1760135439955,-159.401561,0.00029498,30]
[390740051,1760135439964,-456.968738,0.00029498,30]
[390740052,1760135439975,-159.401561,0.00029498,30]
[390740053,1760135439984,-456.968738,0.00029498,30]
[390740054,1760135439994,-159.401561,0.00029498,30]
[390740055,1760135440006,-456.968738,0.00029498,30]
[390740056,1760135440016,-159.401561,0.00029498,30]
[390740057,1760135440026,-159.401561,0.00029498,30]
[390740058,1760135440036,-456.968738,0.00029498,30]
[390740059,1760135440045,-152.298177,0.00029498,30]
[390740060,1760135440057,-159.401561,0.00029498,30]
[390740061,1760135440067,-456.968738,0.00029498,30]
[390740062,1760135440077,-159.401561,0.00029498,30]
[390740063,1760135440087,-456.968738,0.00029498,30]
[390740064,1760135440097,-159.401561,0.00029498,30]
[390740065,1760135440107,-456.968738,0.00029498,30]
[390740066,1760135440118,-159.401561,0.00029498,30]
[390740067,1760135440127,-456.968738,0.00029498,30]
[390740068,1760135440137,-159.401561,0.00029498,30]
[390740069,1760135440147,-456.968738,0.00029498,30]
[390740070,1760135440157,-159.401561,0.00029498,30]
[390740071,1760135440167,-456.968738,0.00029498,30]
[390740072,1760135440176,-159.401561,0.00029498,30]
[390740073,1760135440185,-456.968738,0.00029498,30]
[390740074,1760135440195,-159.401561,0.00029498,30]
[390740075,1760135440205,-456.968738,0.00029498,30]
[390740076,1760135440215,-159.401561,0.00029498,30]
[390740077,1760135440224,-456.968738,0.00029498,30]
[390740078,1760135440234,-159.401566,0.00029498,30]
[390740079,1760135440243,-456.968738,0.00029498,30]
[390740080,1760135440252,-456.968738,0.00029498,30]
[390740081,1760135440262,-226.966127,0.00029498,30]
[390740082,1760135440271,-456.968738,0.00029498,30]
[390740083,1760135440280,-456.968746,0.00029498,30]
[390740084,1760135440290,-151.0,0.00029498,30]
[390740085,1760135440299,-151.0,0.00029498,30]
[390740086,1760135440310,-151.785123,0.00029498,30]
[390740087,1760135440319,-151.0,0.00029498,30]
[390740088,1760135440328,-151.0,0.00029498,30]
[390740089,1760135440338,-151.0,0.00029498,30]
[390740090,1760135440347,-151.0,0.00029498,30]
[390740091,1760135440356,-151.0,0.00029498,30]
[390740092,1760135440365,-151.0,0.00029498,30]
[390740093,1760135440374,-151.0,0.00029498,30]
[390740094,1760135440384,-151.0,0.00029498,30]
[390740095,1760135440393,-195.9016,0.00029498,30]
[390740096,1760135440402,-151.0,0.00029498,30]
[390740097,1760135440411,-151.0,0.00029498,30]
[390740098,1760135440420,-151.0,0.00029498,30]
[390740099,1760135440430,-151.0,0.00029498,30]
[390740100,1760135440439,-151.0,0.00029498,30]
[390740101,1760135440449,-151.885995,0.00029498,30]
[390740102,1760135440458,-261.000611,0.00029498,30]
[390740103,1760135440468,-151.0,0.00029498,30]
[390740104,1760135440478,-151.0,0.00029498,30]
[390740105,1760135440488,-151.0,0.00029498,30]
[390740106,1760135440498,-151.0,0.00029498,30]
[390740107,1760135440507,-151.0,0.00029498,30]
[390740108,1760135440517,-151.0,0.00029498,30]
[390740109,1760135440526,-151.0,0.00029498,30]
[390740110,1760135440535,-151.0,0.00029498,30]